[Event "Titled Tuesday Blitz December 06 Early 2022"]
[White "Osiecki, Stanislaw"]
[Black "Jaskolka, Tomasz"]
[WhiteFideId "1102990"]
[BlackFideId "1170791"]
[WhiteElo "2088"]
[BlackElo "2126"]
[Result "0-1"]
[Round "06"]
[TimeControl "180+1"]
[Date "2022.12.07"]
[WhiteClock "0:00:10"]
[BlackClock "0:00:13"]

1. e4 {[%clk 0:03:00]}  c5 {[%clk 0:02:52]} 2. c3 {[%clk 0:03:00]}  Nf6 {[%clk 0:02:47]} 3. e5 {[%clk 0:02:59]}  Nd5 {[%clk 0:02:47]} 4. d4 {[%clk 0:03:00]}  cxd4 {[%clk 0:02:47]} 5. Nf3 {[%clk 0:03:01]}  e6 {[%clk 0:02:46]} 6. cxd4 {[%clk 0:03:00]}  d6 {[%clk 0:02:44]} 7. a3 {[%clk 0:03:01]}  dxe5 {[%clk 0:02:42]} 8. dxe5 {[%clk 0:03:01]}  Nc6 {[%clk 0:02:42]} 9. Bd3 {[%clk 0:03:00]}  g6 {[%clk 0:02:41]} 10. O-O {[%clk 0:03:00]}  Bg7 {[%clk 0:02:41]} 11. Re1 {[%clk 0:03:00]}  O-O {[%clk 0:02:41]} 12. Bd2 {[%clk 0:02:58]}  b6 {[%clk 0:02:35]} 13. Nc3 {[%clk 0:02:57]}  Bb7 {[%clk 0:02:34]} 14. Nxd5 {[%clk 0:02:57]}  Qxd5 {[%clk 0:02:35]} 15. Bc3 {[%clk 0:02:56]}  Rfd8 {[%clk 0:02:33]} 16. Be4 {[%clk 0:02:50]}  Qc5 {[%clk 0:02:23]} 17. Qe2 {[%clk 0:02:39]}  Rac8 {[%clk 0:02:22]} 18. Rad1 {[%clk 0:02:35]}  Ba8 {[%clk 0:02:11]} 19. h3 {[%clk 0:02:20]}  a5 {[%clk 0:02:06]} 20. Rxd8+ {[%clk 0:02:15]}  Rxd8 {[%clk 0:02:06]} 21. Rd1 {[%clk 0:02:13]}  Qe7 {[%clk 0:02:01]} 22. Rxd8+ {[%clk 0:02:11]}  Qxd8 {[%clk 0:02:01]} 23. Qd3 {[%clk 0:01:59]}  Qxd3 {[%clk 0:01:47]} 24. Bxd3 {[%clk 0:01:58]}  Ne7 {[%clk 0:01:48]} 25. Bd4 {[%clk 0:01:46]}  Bxf3 {[%clk 0:01:08]} 26. gxf3 {[%clk 0:01:45]}  Nd5 {[%clk 0:01:08]} 27. Bc4 {[%clk 0:01:32]}  Nf4 {[%clk 0:00:59]} 28. Bxb6 {[%clk 0:01:29]}  Bxe5 {[%clk 0:00:57]} 29. Bxa5 {[%clk 0:01:28]}  Bxb2 {[%clk 0:00:57]} 30. a4 {[%clk 0:01:07]}  Nxh3+ {[%clk 0:00:57]} 31. Kf1 {[%clk 0:01:02]}  Ng5 {[%clk 0:00:50]} 32. Ke2 {[%clk 0:01:00]}  Bd4 {[%clk 0:00:46]} 33. Bc7 {[%clk 0:00:55]}  h5 {[%clk 0:00:29]} 34. a5 {[%clk 0:00:54]}  h4 {[%clk 0:00:29]} 35. a6 {[%clk 0:00:52]}  h3 {[%clk 0:00:26]} 36. Be5 {[%clk 0:00:22]}  Ba7 {[%clk 0:00:17]} 37. Kd3 {[%clk 0:00:19]}  Nxf3 {[%clk 0:00:17]} 38. Bg3 {[%clk 0:00:16]}  h2 {[%clk 0:00:17]} 39. Bxh2 {[%clk 0:00:16]}  Nxh2 {[%clk 0:00:18]} 40. f4 {[%clk 0:00:12]}  Ng4 {[%clk 0:00:16]} 41. Bb5 {[%clk 0:00:12]}  Kg7 {[%clk 0:00:16]} 42. Bc6 {[%clk 0:00:12]}  Nf6 {[%clk 0:00:13]} 43. Bf3 {[%clk 0:00:10]}  Nd5 {[%clk 0:00:13]} 0-1


[Site "https://www.chess.com"]

[Event "Titled Tuesday Blitz December 06 Early 2022"]
[White "Osmonbekov, Talaibek"]
[Black "Lohani, Sujana"]
[WhiteFideId "2017253"]
[BlackFideId "12311987"]
[WhiteElo "2135"]
[BlackElo "1718"]
[Result "1-0"]
[Round "06"]
[TimeControl "180+1"]
[Date "2022.12.07"]
[WhiteClock "0:01:50"]
[BlackClock "0:01:06"]

1. d4 {[%clk 0:03:00]}  d6 {[%clk 0:02:59]} 2. Bf4 {[%clk 0:03:01]}  Nf6 {[%clk 0:02:59]} 3. Nc3 {[%clk 0:03:01]}  g6 {[%clk 0:02:55]} 4. e4 {[%clk 0:03:01]}  Bg7 {[%clk 0:02:54]} 5. Qd2 {[%clk 0:03:02]}  h6 {[%clk 0:02:54]} 6. h4 {[%clk 0:03:00]}  c6 {[%clk 0:02:35]} 7. f3 {[%clk 0:02:59]}  h5 {[%clk 0:02:27]} 8. O-O-O {[%clk 0:02:57]}  Qa5 {[%clk 0:02:24]} 9. Kb1 {[%clk 0:02:54]}  Na6 {[%clk 0:02:21]} 10. Bc4 {[%clk 0:02:49]}  b5 {[%clk 0:01:58]} 11. Bb3 {[%clk 0:02:34]}  b4 {[%clk 0:01:54]} 12. Na4 {[%clk 0:02:30]}  c5 {[%clk 0:01:53]} 13. dxc5 {[%clk 0:02:28]}  Nxc5 {[%clk 0:01:53]} 14. Nxc5 {[%clk 0:02:25]}  Qxc5 {[%clk 0:01:52]} 15. e5 {[%clk 0:02:24]}  Nd7 {[%clk 0:01:27]} 16. exd6 {[%clk 0:02:23]}  O-O {[%clk 0:01:27]} 17. dxe7 {[%clk 0:02:17]}  Re8 {[%clk 0:01:22]} 18. Bd6 {[%clk 0:02:14]}  Qb6 {[%clk 0:01:06]} 19. Qd5 {[%clk 0:01:50]} 1-0


[Site "https://www.chess.com"]

[Event "Titled Tuesday Blitz December 06 Early 2022"]
[White "Pakleza, Zbigniew"]
[Black "Postnikov, Artem"]
[WhiteFideId "1119290"]
[BlackFideId "34153575"]
[WhiteElo "2410"]
[BlackElo "2243"]
[Result "1-0"]
[Round "06"]
[TimeControl "180+1"]
[Date "2022.12.07"]
[WhiteClock "0:00:05"]
[BlackClock "0:00:03"]

1. d4 {[%clk 0:03:00]}  Nf6 {[%clk 0:02:59]} 2. Nf3 {[%clk 0:03:00]}  e6 {[%clk 0:02:59]} 3. Bf4 {[%clk 0:03:01]}  d5 {[%clk 0:02:59]} 4. e3 {[%clk 0:03:01]}  c5 {[%clk 0:03:00]} 5. c3 {[%clk 0:03:01]}  Nc6 {[%clk 0:03:00]} 6. Nbd2 {[%clk 0:03:02]}  Bd6 {[%clk 0:03:00]} 7. Bg3 {[%clk 0:03:02]}  O-O {[%clk 0:02:59]} 8. Bd3 {[%clk 0:03:02]}  b6 {[%clk 0:02:59]} 9. Ne5 {[%clk 0:03:02]}  Ne7 {[%clk 0:02:59]} 10. f4 {[%clk 0:02:57]}  Bb7 {[%clk 0:02:58]} 11. Qb1 {[%clk 0:02:56]}  g6 {[%clk 0:01:45]} 12. Bf2 {[%clk 0:02:55]}  a5 {[%clk 0:01:20]} 13. O-O {[%clk 0:02:43]}  Nf5 {[%clk 0:01:10]} 14. g4 {[%clk 0:02:38]}  Ng7 {[%clk 0:01:09]} 15. Bh4 {[%clk 0:02:21]}  Be7 {[%clk 0:01:08]} 16. Bxf6 {[%clk 0:01:53]}  Bxf6 {[%clk 0:01:09]} 17. Ndf3 {[%clk 0:01:54]}  Ne8 {[%clk 0:01:05]} 18. g5 {[%clk 0:01:41]}  Bg7 {[%clk 0:01:04]} 19. h4 {[%clk 0:01:41]}  Nd6 {[%clk 0:01:04]} 20. Kg2 {[%clk 0:01:40]}  Ne4 {[%clk 0:00:59]} 21. Rh1 {[%clk 0:01:29]}  a4 {[%clk 0:00:55]} 22. a3 {[%clk 0:01:28]}  f6 {[%clk 0:00:27]} 23. Ng4 {[%clk 0:01:25]}  Kh8 {[%clk 0:00:22]} 24. gxf6 {[%clk 0:01:17]}  Nxf6 {[%clk 0:00:21]} 25. Nxf6 {[%clk 0:01:11]}  Bxf6 {[%clk 0:00:22]} 26. h5 {[%clk 0:01:07]}  g5 {[%clk 0:00:22]} 27. Qe1 {[%clk 0:00:38]}  gxf4 {[%clk 0:00:19]} 28. exf4 {[%clk 0:00:39]}  Rg8+ {[%clk 0:00:18]} 29. Kf2 {[%clk 0:00:38]}  cxd4 {[%clk 0:00:15]} 30. cxd4 {[%clk 0:00:39]}  Qc7 {[%clk 0:00:10]} 31. Ke3 {[%clk 0:00:26]}  Raf8 {[%clk 0:00:09]} 32. Ne5 {[%clk 0:00:10]}  Qg7 {[%clk 0:00:08]} 33. Kd2 {[%clk 0:00:05]}  Qh6 {[%clk 0:00:07]} 34. Kc3 {[%clk 0:00:05]}  Qxf4 {[%clk 0:00:06]} 35. Rf1 {[%clk 0:00:05]}  Qg5 {[%clk 0:00:05]} 36. Kb4 {[%clk 0:00:04]}  Bxe5 {[%clk 0:00:05]} 37. Qxe5+ {[%clk 0:00:04]}  Qxe5 {[%clk 0:00:04]} 38. dxe5 {[%clk 0:00:05]}  Rxf1 {[%clk 0:00:04]} 39. Rxf1 {[%clk 0:00:06]}  Rg4+ {[%clk 0:00:02]} 40. Kb5 {[%clk 0:00:05]}  Rd4 {[%clk 0:00:03]} 41. h6 {[%clk 0:00:05]} 1-0


[Site "https://www.chess.com"]

[Event "Titled Tuesday Blitz December 06 Early 2022"]
[White "Papasimakopoulos, Alexandros"]
[Black "Martinez Reyes, Pedro Ramon"]
[WhiteFideId "4244125"]
[BlackFideId "3901807"]
[WhiteElo "2384"]
[BlackElo "2354"]
[Result "1-0"]
[Round "06"]
[TimeControl "180+1"]
[Date "2022.12.07"]
[WhiteClock "0:00:09"]
[BlackClock "0:00:31"]

1. d4 {[%clk 0:03:00]}  Nf6 {[%clk 0:02:55]} 2. c4 {[%clk 0:03:00]}  c5 {[%clk 0:02:56]} 3. d5 {[%clk 0:03:00]}  e5 {[%clk 0:02:56]} 4. Nc3 {[%clk 0:02:56]}  d6 {[%clk 0:02:56]} 5. e4 {[%clk 0:02:55]}  Be7 {[%clk 0:02:55]} 6. Bd3 {[%clk 0:02:55]}  Nbd7 {[%clk 0:02:55]} 7. Nge2 {[%clk 0:02:55]}  Nf8 {[%clk 0:02:55]} 8. O-O {[%clk 0:02:54]}  Ng6 {[%clk 0:02:56]} 9. a3 {[%clk 0:02:48]}  Nh5 {[%clk 0:02:38]} 10. b4 {[%clk 0:02:42]}  b6 {[%clk 0:02:38]} 11. bxc5 {[%clk 0:02:39]}  bxc5 {[%clk 0:02:38]} 12. Qa4+ {[%clk 0:02:27]}  Bd7 {[%clk 0:02:38]} 13. Qa6 {[%clk 0:02:27]}  O-O {[%clk 0:02:34]} 14. Nb5 {[%clk 0:02:16]}  Bxb5 {[%clk 0:02:30]} 15. cxb5 {[%clk 0:02:09]}  Bg5 {[%clk 0:02:31]} 16. g3 {[%clk 0:02:02]}  Bxc1 {[%clk 0:02:23]} 17. Rfxc1 {[%clk 0:01:51]}  Qb6 {[%clk 0:02:23]} 18. Qa4 {[%clk 0:01:33]}  Nf6 {[%clk 0:02:15]} 19. Qc2 {[%clk 0:01:29]}  Rac8 {[%clk 0:01:56]} 20. Bc4 {[%clk 0:01:28]}  Ng4 {[%clk 0:01:46]} 21. a4 {[%clk 0:01:21]}  Qd8 {[%clk 0:01:40]} 22. h3 {[%clk 0:01:17]}  Nh6 {[%clk 0:01:38]} 23. Bd3 {[%clk 0:01:04]}  Qg5 {[%clk 0:01:34]} 24. Kh2 {[%clk 0:00:47]}  Qh5 {[%clk 0:01:31]} 25. Nc3 {[%clk 0:00:35]}  Ne7 {[%clk 0:01:19]} 26. Qe2 {[%clk 0:00:20]}  Qg5 {[%clk 0:01:15]} 27. a5 {[%clk 0:00:17]}  Rb8 {[%clk 0:01:14]} 28. Rab1 {[%clk 0:00:17]}  g6 {[%clk 0:01:11]} 29. Qe3 {[%clk 0:00:16]}  Qh5 {[%clk 0:01:10]} 30. Be2 {[%clk 0:00:17]}  Nhf5 {[%clk 0:01:03]} 31. exf5 {[%clk 0:00:16]}  Qxf5 {[%clk 0:01:02]} 32. Bd3 {[%clk 0:00:16]}  Qf6 {[%clk 0:01:02]} 33. Ne4 {[%clk 0:00:17]}  Qg7 {[%clk 0:01:01]} 34. Nxd6 {[%clk 0:00:17]}  Rfd8 {[%clk 0:00:56]} 35. Qxc5 {[%clk 0:00:17]}  Qf8 {[%clk 0:00:52]} 36. Ne4 {[%clk 0:00:16]}  Rxd5 {[%clk 0:00:52]} 37. Qc4 {[%clk 0:00:14]}  Rd4 {[%clk 0:00:52]} 38. Qc3 {[%clk 0:00:13]}  Rbd8 {[%clk 0:00:51]} 39. Bc2 {[%clk 0:00:13]}  f5 {[%clk 0:00:48]} 40. Nc5 {[%clk 0:00:12]}  Qf6 {[%clk 0:00:45]} 41. Bb3+ {[%clk 0:00:12]}  Kg7 {[%clk 0:00:45]} 42. Ne6+ {[%clk 0:00:13]}  Kh6 {[%clk 0:00:46]} 43. Nxd8 {[%clk 0:00:13]}  f4 {[%clk 0:00:44]} 44. Nf7+ {[%clk 0:00:12]}  Kg7 {[%clk 0:00:44]} 45. Re1 {[%clk 0:00:11]}  fxg3+ {[%clk 0:00:42]} 46. Qxg3 {[%clk 0:00:12]}  Rf4 {[%clk 0:00:41]} 47. Re2 {[%clk 0:00:11]}  Nf5 {[%clk 0:00:40]} 48. Qg5 {[%clk 0:00:09]}  Nd4 {[%clk 0:00:31]} 49. Qh6+ {[%clk 0:00:08]}  Kg8 {[%clk 0:00:30]} 50. Nxe5+ {[%clk 0:00:08]}  Kh8 {[%clk 0:00:30]} 51. Nf7+ {[%clk 0:00:08]}  Kg8 {[%clk 0:00:31]} 52. Ng5+ {[%clk 0:00:08]}  Kh8 {[%clk 0:00:31]} 53. Qxh7# {[%clk 0:00:09]} 1-0


[Site "https://www.chess.com"]

[Event "Titled Tuesday Blitz December 06 Early 2022"]
[White "Paravyan, David"]
[Black "Predke, Alexandr"]
[WhiteFideId "4194985"]
[BlackFideId "24107581"]
[WhiteElo "2551"]
[BlackElo "2616"]
[Result "0-1"]
[Round "06"]
[TimeControl "180+1"]
[Date "2022.12.06"]
[WhiteClock "0:00:03"]
[BlackClock "0:00:15"]

1. e4 {[%clk 0:03:00]}  c5 {[%clk 0:02:59]} 2. Nf3 {[%clk 0:03:00]}  e6 {[%clk 0:02:59]} 3. d4 {[%clk 0:03:01]}  cxd4 {[%clk 0:03:00]} 4. Nxd4 {[%clk 0:03:01]}  a6 {[%clk 0:03:00]} 5. c3 {[%clk 0:03:02]}  Nc6 {[%clk 0:02:52]} 6. Nxc6 {[%clk 0:03:02]}  bxc6 {[%clk 0:02:52]} 7. Bd3 {[%clk 0:03:01]}  d5 {[%clk 0:02:51]} 8. Qe2 {[%clk 0:02:58]}  Nf6 {[%clk 0:02:50]} 9. Bg5 {[%clk 0:02:54]}  Be7 {[%clk 0:02:49]} 10. Nd2 {[%clk 0:02:53]}  a5 {[%clk 0:02:48]} 11. O-O {[%clk 0:02:50]}  O-O {[%clk 0:02:47]} 12. Rfe1 {[%clk 0:02:50]}  Nd7 {[%clk 0:02:36]} 13. Bxe7 {[%clk 0:02:44]}  Qxe7 {[%clk 0:02:37]} 14. Rad1 {[%clk 0:02:37]}  Nc5 {[%clk 0:02:06]} 15. Bc2 {[%clk 0:02:37]}  Ba6 {[%clk 0:02:06]} 16. Qe3 {[%clk 0:02:36]}  Nd7 {[%clk 0:02:02]} 17. Nf3 {[%clk 0:02:28]}  Bb7 {[%clk 0:01:51]} 18. h3 {[%clk 0:02:08]}  h6 {[%clk 0:01:50]} 19. Rd2 {[%clk 0:02:07]}  Qf6 {[%clk 0:01:48]} 20. e5 {[%clk 0:02:05]}  Qe7 {[%clk 0:01:47]} 21. Qd3 {[%clk 0:02:00]}  g6 {[%clk 0:01:47]} 22. Nh2 {[%clk 0:01:57]}  Qg5 {[%clk 0:01:42]} 23. Nf3 {[%clk 0:01:31]}  Qe7 {[%clk 0:01:41]} 24. Qe3 {[%clk 0:01:31]}  Kg7 {[%clk 0:01:41]} 25. Nh2 {[%clk 0:01:31]}  c5 {[%clk 0:01:20]} 26. Ng4 {[%clk 0:01:29]}  Rh8 {[%clk 0:01:21]} 27. Ba4 {[%clk 0:01:14]}  h5 {[%clk 0:01:21]} 28. Nh2 {[%clk 0:01:14]}  Nb6 {[%clk 0:01:18]} 29. Bb5 {[%clk 0:01:14]}  d4 {[%clk 0:01:15]} 30. cxd4 {[%clk 0:01:05]}  Nd5 {[%clk 0:01:15]} 31. Qg3 {[%clk 0:00:37]}  h4 {[%clk 0:01:07]} 32. Qg4 {[%clk 0:00:35]}  Rh5 {[%clk 0:01:02]} 33. Nf3 {[%clk 0:00:32]}  Rah8 {[%clk 0:00:45]} 34. a3 {[%clk 0:00:31]}  Rf5 {[%clk 0:00:42]} 35. Re4 {[%clk 0:00:21]}  Nc7 {[%clk 0:00:37]} 36. Bd3 {[%clk 0:00:15]}  Bxe4 {[%clk 0:00:37]} 37. Bxe4 {[%clk 0:00:16]}  Rfh5 {[%clk 0:00:38]} 38. dxc5 {[%clk 0:00:12]}  Qxc5 {[%clk 0:00:39]} 39. Rd7 {[%clk 0:00:12]}  Qc1+ {[%clk 0:00:24]} 40. Kh2 {[%clk 0:00:12]}  R8h6 {[%clk 0:00:22]} 41. Bxg6 {[%clk 0:00:07]}  Rxg6 {[%clk 0:00:22]} 42. Qxh5 {[%clk 0:00:08]}  Qf4+ {[%clk 0:00:23]} 43. Kh1 {[%clk 0:00:08]}  Nd5 {[%clk 0:00:17]} 44. Rxd5 {[%clk 0:00:03]}  exd5 {[%clk 0:00:15]} 0-1


[Site "https://www.chess.com"]

[Event "Titled Tuesday Blitz December 06 Early 2022"]
[White "Pein, Jonathan"]
[Black "monkins"]
[WhiteFideId "417092"]
[WhiteElo "2225"]
[BlackElo "2254"]
[Result "1-0"]
[Round "06"]
[TimeControl "180+1"]
[Date "2022.12.07"]
[WhiteClock "0:00:22"]
[BlackClock "0:00:04"]

1. e4 {[%clk 0:02:59]}  c6 {[%clk 0:02:56]} 2. b3 {[%clk 0:02:57]}  d5 {[%clk 0:02:56]} 3. Bb2 {[%clk 0:02:58]}  dxe4 {[%clk 0:02:54]} 4. Nc3 {[%clk 0:02:59]}  Nf6 {[%clk 0:02:54]} 5. Nge2 {[%clk 0:02:58]}  Bf5 {[%clk 0:02:49]} 6. Ng3 {[%clk 0:02:59]}  Bg6 {[%clk 0:02:49]} 7. h4 {[%clk 0:02:59]}  h5 {[%clk 0:02:43]} 8. Qe2 {[%clk 0:03:00]}  e3 {[%clk 0:02:20]} 9. fxe3 {[%clk 0:02:53]}  Qc7 {[%clk 0:02:15]} 10. Qf3 {[%clk 0:02:46]}  Nbd7 {[%clk 0:02:05]} 11. O-O-O {[%clk 0:02:34]}  Ne5 {[%clk 0:02:04]} 12. Qf2 {[%clk 0:02:30]}  Neg4 {[%clk 0:02:01]} 13. Qe1 {[%clk 0:02:30]}  O-O-O {[%clk 0:01:54]} 14. e4 {[%clk 0:02:26]}  e6 {[%clk 0:01:42]} 15. d4 {[%clk 0:02:22]}  Qf4+ {[%clk 0:01:35]} 16. Kb1 {[%clk 0:02:19]}  Bb4 {[%clk 0:01:16]} 17. a3 {[%clk 0:02:00]}  Bxc3 {[%clk 0:01:14]} 18. Qxc3 {[%clk 0:02:01]}  Nf2 {[%clk 0:01:06]} 19. Ba6 {[%clk 0:01:21]}  Qc7 {[%clk 0:00:43]} 20. Bc4 {[%clk 0:01:14]}  Nxh1 {[%clk 0:00:39]} 21. Rxh1 {[%clk 0:01:13]}  Nxe4 {[%clk 0:00:39]} 22. Nxe4 {[%clk 0:01:13]}  Bxe4 {[%clk 0:00:40]} 23. Qd2 {[%clk 0:01:10]}  Bg6 {[%clk 0:00:35]} 24. Qg5 {[%clk 0:01:11]}  b5 {[%clk 0:00:31]} 25. Bxe6+ {[%clk 0:01:11]}  fxe6 {[%clk 0:00:29]} 26. Qxg6 {[%clk 0:01:11]}  Qd7 {[%clk 0:00:21]} 27. Re1 {[%clk 0:01:10]}  Rde8 {[%clk 0:00:20]} 28. Re5 {[%clk 0:01:07]}  Rhf8 {[%clk 0:00:19]} 29. Qxh5 {[%clk 0:01:06]}  Rf1+ {[%clk 0:00:17]} 30. Ka2 {[%clk 0:01:06]}  Rf2 {[%clk 0:00:18]} 31. Rc5 {[%clk 0:01:06]}  Kb7 {[%clk 0:00:12]} 32. g3 {[%clk 0:00:57]}  Ref8 {[%clk 0:00:11]} 33. Bc1 {[%clk 0:00:49]}  R8f5 {[%clk 0:00:11]} 34. Qg6 {[%clk 0:00:38]}  Rxc5 {[%clk 0:00:09]} 35. dxc5 {[%clk 0:00:38]}  Qd1 {[%clk 0:00:09]} 36. Bb2 {[%clk 0:00:33]}  Qxc2 {[%clk 0:00:08]} 37. Qxg7+ {[%clk 0:00:34]}  Ka6 {[%clk 0:00:08]} 38. h5 {[%clk 0:00:31]}  Qxc5 {[%clk 0:00:06]} 39. h6 {[%clk 0:00:31]}  Rh2 {[%clk 0:00:05]} 40. h7 {[%clk 0:00:31]}  b4 {[%clk 0:00:04]} 41. h8=Q {[%clk 0:00:25]}  Rxh8 {[%clk 0:00:04]} 42. Qxh8 {[%clk 0:00:26]}  bxa3 {[%clk 0:00:05]} 43. Bxa3 {[%clk 0:00:26]}  Qe3 {[%clk 0:00:04]} 44. Qc8+ {[%clk 0:00:22]} 1-0


[Site "https://www.chess.com"]

[Event "Titled Tuesday Blitz December 06 Early 2022"]
[White "Piesik, Piotr"]
[Black "Ozen, Bahadir"]
[WhiteFideId "1136194"]
[BlackFideId "6337058"]
[WhiteElo "2316"]
[BlackElo "2503"]
[Result "1/2-1/2"]
[Round "06"]
[TimeControl "180+1"]
[Date "2022.12.06"]
[WhiteClock "0:01:24"]
[BlackClock "0:00:41"]

1. Nf3 {[%clk 0:03:00]}  Nf6 {[%clk 0:02:59]} 2. g3 {[%clk 0:03:01]}  d6 {[%clk 0:03:00]} 3. Bg2 {[%clk 0:03:01]}  e5 {[%clk 0:03:00]} 4. O-O {[%clk 0:03:01]}  Be7 {[%clk 0:03:01]} 5. d4 {[%clk 0:03:02]}  Nbd7 {[%clk 0:03:01]} 6. dxe5 {[%clk 0:03:02]}  dxe5 {[%clk 0:03:02]} 7. Nbd2 {[%clk 0:03:02]}  c6 {[%clk 0:03:01]} 8. e4 {[%clk 0:03:02]}  O-O {[%clk 0:03:01]} 9. a4 {[%clk 0:03:02]}  Qc7 {[%clk 0:02:54]} 10. Qe2 {[%clk 0:03:02]}  Rb8 {[%clk 0:02:46]} 11. a5 {[%clk 0:03:01]}  b5 {[%clk 0:02:46]} 12. axb6 {[%clk 0:03:00]}  axb6 {[%clk 0:02:47]} 13. b3 {[%clk 0:02:56]}  b5 {[%clk 0:02:47]} 14. Bb2 {[%clk 0:02:55]}  Re8 {[%clk 0:02:47]} 15. Nh4 {[%clk 0:02:50]}  Bf8 {[%clk 0:02:45]} 16. Nf5 {[%clk 0:02:50]}  g6 {[%clk 0:02:35]} 17. Ne3 {[%clk 0:02:49]}  Nc5 {[%clk 0:02:34]} 18. f4 {[%clk 0:02:39]}  exf4 {[%clk 0:02:21]} 19. Bxf6 {[%clk 0:02:37]}  fxe3 {[%clk 0:02:21]} 20. Qxe3 {[%clk 0:02:38]}  Ne6 {[%clk 0:02:14]} 21. Kh1 {[%clk 0:02:35]}  Bb7 {[%clk 0:02:07]} 22. e5 {[%clk 0:02:28]}  c5 {[%clk 0:02:04]} 23. Bxb7 {[%clk 0:02:24]}  Qxb7+ {[%clk 0:02:04]} 24. Qe4 {[%clk 0:02:25]}  Rec8 {[%clk 0:01:42]} 25. Qxb7 {[%clk 0:02:20]}  Rxb7 {[%clk 0:01:43]} 26. Ne4 {[%clk 0:02:20]}  h6 {[%clk 0:01:25]} 27. h4 {[%clk 0:02:19]}  Kh7 {[%clk 0:01:16]} 28. Rfd1 {[%clk 0:02:12]}  c4 {[%clk 0:01:15]} 29. bxc4 {[%clk 0:02:00]}  bxc4 {[%clk 0:01:12]} 30. Ra6 {[%clk 0:01:47]}  Nc5 {[%clk 0:01:08]} 31. Nxc5 {[%clk 0:01:41]}  Bxc5 {[%clk 0:01:09]} 32. e6 {[%clk 0:01:39]}  fxe6 {[%clk 0:01:09]} 33. Rxe6 {[%clk 0:01:40]}  Rf7 {[%clk 0:01:07]} 34. Rd5 {[%clk 0:01:36]}  Bf8 {[%clk 0:01:03]} 35. g4 {[%clk 0:01:36]}  Ra8 {[%clk 0:00:48]} 36. g5 {[%clk 0:01:33]}  hxg5 {[%clk 0:00:43]} 37. hxg5 {[%clk 0:01:34]}  Bg7 {[%clk 0:00:44]} 38. Rc5 {[%clk 0:01:27]}  Bxf6 {[%clk 0:00:41]} 39. gxf6 {[%clk 0:01:25]}  Raf8 {[%clk 0:00:41]} 40. Rxc4 {[%clk 0:01:24]}  Rxf6 {[%clk 0:00:41]} 41. Rxf6 {[%clk 0:01:24]}  Rxf6 {[%clk 0:00:41]} 1/2-1/2


[Site "https://www.chess.com"]

[Event "Titled Tuesday Blitz December 06 Early 2022"]
[White "Ramirez Vido, Robert Yorisan"]
[Black "Suduvasachmatai"]
[WhiteFideId "3513823"]
[WhiteElo "2363"]
[BlackElo "1965"]
[Result "1-0"]
[Round "06"]
[TimeControl "180+1"]
[Date "2022.12.07"]
[WhiteClock "0:00:09"]
[BlackClock "0:01:07"]

1. Nf3 {[%clk 0:03:00]}  d5 {[%clk 0:02:57]} 2. g3 {[%clk 0:02:59]}  Nd7 {[%clk 0:02:56]} 3. Bg2 {[%clk 0:02:58]}  e5 {[%clk 0:02:56]} 4. d3 {[%clk 0:02:57]}  Ngf6 {[%clk 0:02:55]} 5. O-O {[%clk 0:02:57]}  Be7 {[%clk 0:02:54]} 6. e4 {[%clk 0:02:46]}  dxe4 {[%clk 0:02:52]} 7. dxe4 {[%clk 0:02:46]}  Nxe4 {[%clk 0:02:52]} 8. Nxe5 {[%clk 0:02:28]}  Nxe5 {[%clk 0:02:50]} 9. Qxd8+ {[%clk 0:02:18]}  Bxd8 {[%clk 0:02:49]} 10. Bxe4 {[%clk 0:02:19]}  Bh3 {[%clk 0:02:49]} 11. Re1 {[%clk 0:02:15]}  Be6 {[%clk 0:02:36]} 12. f4 {[%clk 0:01:41]}  f5 {[%clk 0:02:09]} 13. Bxb7 {[%clk 0:01:37]}  Rb8 {[%clk 0:02:08]} 14. Rxe5 {[%clk 0:01:36]}  Rxb7 {[%clk 0:02:07]} 15. Rxe6+ {[%clk 0:01:36]}  Kf7 {[%clk 0:02:07]} 16. Re2 {[%clk 0:01:31]}  Bf6 {[%clk 0:02:07]} 17. c3 {[%clk 0:01:23]}  Rd8 {[%clk 0:02:04]} 18. Kf2 {[%clk 0:01:03]}  Rd1 {[%clk 0:01:56]} 19. Re1 {[%clk 0:01:02]}  Rd6 {[%clk 0:01:52]} 20. Na3 {[%clk 0:00:55]}  Rd8 {[%clk 0:01:46]} 21. Nc4 {[%clk 0:00:49]}  c6 {[%clk 0:01:41]} 22. Be3 {[%clk 0:00:43]}  a5 {[%clk 0:01:38]} 23. Rad1 {[%clk 0:00:40]}  Rdb8 {[%clk 0:01:37]} 24. Nd6+ {[%clk 0:00:40]}  Kg6 {[%clk 0:01:36]} 25. Nxb7 {[%clk 0:00:41]}  Rxb7 {[%clk 0:01:37]} 26. Re2 {[%clk 0:00:40]}  a4 {[%clk 0:01:37]} 27. Bd4 {[%clk 0:00:38]}  Be7 {[%clk 0:01:33]} 28. Re6+ {[%clk 0:00:35]}  Kf7 {[%clk 0:01:32]} 29. Rde1 {[%clk 0:00:35]}  Bf8 {[%clk 0:01:29]} 30. R1e2 {[%clk 0:00:33]}  a3 {[%clk 0:01:23]} 31. b3 {[%clk 0:00:31]}  c5 {[%clk 0:01:21]} 32. Bxg7 {[%clk 0:00:16]}  Kxg7 {[%clk 0:01:18]} 33. Rc6 {[%clk 0:00:14]}  Kf7 {[%clk 0:01:15]} 34. c4 {[%clk 0:00:13]}  Bg7 {[%clk 0:01:14]} 35. Rd6 {[%clk 0:00:12]}  Bd4+ {[%clk 0:01:13]} 36. Kf3 {[%clk 0:00:12]}  h5 {[%clk 0:01:10]} 37. Rd2 {[%clk 0:00:10]}  Re7 {[%clk 0:01:06]} 38. R6xd4 {[%clk 0:00:08]}  cxd4 {[%clk 0:01:07]} 39. Rxd4 {[%clk 0:00:09]}  Re1 {[%clk 0:01:07]} 40. Rd5 {[%clk 0:00:09]}  Ke6 {[%clk 0:01:06]} 41. Re5+ {[%clk 0:00:08]}  Rxe5 {[%clk 0:01:06]} 42. fxe5 {[%clk 0:00:09]}  Kxe5 {[%clk 0:01:07]} 43. Ke3 {[%clk 0:00:09]} 1-0


[Site "https://www.chess.com"]